[Event "Fagernes Chess GM-Swiss 2025"]
[Site "Fagernes"]
[Date "2025.04.14"]
[Round "2.5"]
[White "Raja Rithvik R"]
[Black "Aradhya, Garg"]
[Result "1-0"]
[Annotator "TA"]
[ECO "D19"]
[WhiteElo "2538"]
[BlackElo "2387"]
[PlyCount "69"]
[EventDate "2025.04.12"]
[EventCountry "NOR"]
[SourceTitle "playchess.com"]
[Source "ChessBase"]
[SourceQuality "1"]
[TimeControl "40/6000+30:2400+30"]

{[%evp 16,69,14,9,20,10,42,34,25,34,43,40,44,39,47,29,56,54,59,52,92,89,99,104,110,103,110,110,179,197,181,176,198,180,172,170,178,170,199,192,236,245,257,247,249,247,520,515,716,697,685,665,1193,1167,1098,1069]} 1. d4 {[%emt 0:02:22]} d5 {[%emt 0:00:02]} 2. c4 {[%emt 0:00:04]} c6 {[%emt 0:00:05]} 3. Nf3 {[%emt 0:00:09]} Nf6 {[%emt 0:00:05]} 4. Nc3 {[%emt 0:00:07]} dxc4 {[%emt 0:00:07]} 5. a4 {[%emt 0:00:03]} Bf5 {[%emt 0:00:10]} 6. e3 {[%emt 0:00:05]} e6 {[%emt 0:00:06]} 7. Bxc4 {[%emt 0:00:05]} Bb4 {[%emt 0:00:04]} 8. O-O {[%emt 0:00:05]} O-O {[%emt 0:00:06]} 9. Qe2 {[%emt 0:00:04]} h6 {[%emt 0:01:26]} 10. Rd1 {[%emt 0:00:28]} Ne4 {[%emt 0:00:16]} 11. Bd3 {[%emt 0:00:46]} Bxc3 {[%emt 0:01:54] White is slightly better.} 12. Bxe4 $1 {[%emt 0:00:13]} Bxe4 {[%emt 0:00:07][%cal Bf5e4,Be4c2,Bc2a4][%mdl 32]} 13. bxc3 {[%emt 0:00:04]} Nd7 {[%emt 0:00:03]} 14. Ba3 {[%emt 0:00:12]} Re8 {[%emt 0:00:02]} 15. Nd2 {[%emt 0:12:17]} Bc2 {[%emt 0:13:46]} 16. Rdc1 {[%emt 0:00:18]} Bxa4 {[%emt 0:00:08]} 17. Ne4 $1 {[%emt 0:00:40]} Nb6 {[%emt 0:02:56] Black is weak on the dark squares. White leaves nothing to chance now.} 18. c4 {[%emt 0:05:31]} Nc8 {[%emt 0:17:09]} 19. Nc3 {[%emt 0:14:39] White is more active.} b5 {[%emt 0:00:02]} 20. Qf3 $36 {[%emt 0:00:03][%mdl 2048] White has strong initiative.} Nb6 {[%emt 0:15:03]} 21. Nxa4 {[%emt 0:01:26]} (21. Qxc6 Rc8 (21... Nxc4 22. Nxa4 Nxa3 23. Rxa3 $14) 22. Qb7 Nxc4 (22... bxc4 23. Bc5 $15) 23. Nxa4 Nxa3 (23... bxa4 24. Qb4 $11) 24. Rxc8 (24. Qxa7 $2 {too greedy.} Nc2 $19) 24... Qxc8 25. Qxa7 bxa4 $19) 21... bxa4 {[%emt 0:01:20]} (21... Nxa4 $16 22. Qxc6 a6) 22. Qxc6 $18 {[%emt 0:00:23]} Rc8 {[%emt 0:03:23]} 23. Qb5 {[%emt 0:00:07]} Qg5 {[%emt 0:00:07]} 24. Qxg5 {[%emt 0:09:02]} hxg5 {[%emt 0:00:02]} 25. c5 {[%emt 0:00:05]} Nd5 {[%emt 0:00:33]} 26. Rc4 {[%emt 0:01:01]} Rc7 {[%emt 0:02:47]} 27. e4 {[%emt 0:07:39]} Nf6 {[%emt 0:02:36]} 28. f3 {[%emt 0:00:40]} ({Less strong is} 28. Rxa4 Nxe4 29. Bb4 Ra8 $16) 28... g4 {[%emt 0:01:22]} 29. Rxa4 {[%emt 0:02:19]} gxf3 {[%emt 0:00:17]} 30. gxf3 {[%emt 0:00:04]} Nh5 $2 {[%emt 0:01:19] [#]} (30... Nd7 31. Bb4 Nb8) 31. d5 {[%emt 0:06:32][%cal Bd4d5,Bd5d6,Bd6d7][%mdl 32] White is clearly winning.} Nf4 {[%emt 0:11:28]} 32. d6 {[%emt 0:02:13]} Rc6 {[%emt 0:00:02]} 33. Rxa7 {[%emt 0:00:38]} g5 {[%emt 0:03:15]} 34. d7 {[%emt 0:02:10]} Rd8 {[%emt 0:00:07]} 35. Bb2 {[%emt 0:00:13] Weighted Error Value: White=0.02 (flawless) /Black=0.51  Mistake:       	---       	Black=2      Inaccurate:     	---       	Black=4      OK:         	White=12    	Black=6      Best:        	White=3     	Black=1      Strong:       	White=2     	---} 1-0

[Event "Fagernes Chess GM-Swiss 2025"]
[Site "Fagernes"]
[Date "2025.04.14"]
[Round "2.6"]
[White "Miezis, Normunds"]
[Black "Kvaloy, Aksel Bu"]
[Result "0-1"]
[Annotator "TA"]
[ECO "A13"]
[WhiteElo "2409"]
[BlackElo "2481"]
[PlyCount "116"]
[EventDate "2025.04.12"]
[EventCountry "NOR"]
[SourceTitle "playchess.com"]
[Source "ChessBase"]
[SourceQuality "1"]
[TimeControl "40/6000+30:2400+30"]

{[%evp 9,116,12,6,0,0,0,1,0,0,1,1,0,0,0,0,0,14,26,16,15,14,-17,-10,-7,26,-3,17,26,20,22,19,29,17,0,25,0,12,0,0,-25,-31,0,-29,-118,-139,-302,-321,-309,-318,-306,-272,-542,-530,-563,-472,-573,-577,-566,-556,-531,-524,-482,-227,-422,-57,-57,-60,-195,-196,-229,-243,-284,-281,-232,-241,-246,-236,-281,-280,-339,-347,-616,-534,-539,-534,-511,-427,-785,-683,-1246,-1295,-3496,-2799,-2392,-2254,-2381,-2381,-1832,-1733,-1592,-1634,-1396,-1391,-29974,-29976,-29977,-29978,-29976,-29975]} 1. c4 {[%emt 0:00:06]} e6 {[%emt 0:00:07]} 2. Nf3 {[%emt 0:05:16]} d5 {[%emt 0:00:14]} 3. e3 {[%emt 0:00:22]} Nf6 {[%emt 0:00:08]} 4. b3 {[%emt 0:01:55]} b6 {[%emt 0:01:17]} 5. Bb2 {[%emt 0:00:49]} Bb7 {[%emt 0:00:16]} 6. cxd5 {[%emt 0:03:01] A13: English Opening: 1...e6.} exd5 {[%emt 0:00:29]} 7. Nc3 {[%emt 0:02:58]} Nbd7 {[%emt 0:00:31]} 8. Rc1 {[%emt 0:04:02] The position is equal.} a6 {[%emt 0:00:49]} 9. d4 {[%emt 0:05:15]} Bd6 {[%emt 0:00:52]} 10. g3 {[%emt 0:01:22]} O-O {[%emt 0:01:11]} 11. Bg2 {[%emt 0:00:33]} Re8 {[%emt 0:05:06]} 12. O-O {[%emt 0:01:46]} Rc8 {[%emt 0:01:41]} 13. Nd2 {[%emt 0:05:49]} Bf8 $146 {[%emt 0:05:17]} (13... Qe7 14. Qc2 Nf8 15. Nc4 Bb4 16. Ne5 Ne6 17. Rfd1 Bd6 18. Nc4 Bb4 19. a3 Bxc3 20. Qxc3 {1-0 Nakamura,H (2768)-Tang,A (2539) Titled Tuesday intern op 04th Oct Early blitz 2022 (5)}) 14. Re1 {[%emt 0:10:49]} Ne4 {[%emt 0:04:38]} 15. Ndxe4 {[%emt 0:22:12]} dxe4 {[%emt 0:00:06]} 16. Qc2 {[%emt 0:00:19][%cal Rc3e4]} Nf6 {[%emt 0:01:03]} 17. Red1 {[%emt 0:03:21][%cal Od4d5]} Qd7 {[%emt 0:06:52] [#]} 18. d5 $1 {[%emt 0:03:40][%cal Rc3e4]} Qf5 {[%emt 0:01:03][%cal Of8d6]} 19. Rd4 {[%emt 0:02:57][%cal Rc3e4]} c5 {[%emt 0:02:02]} 20. dxc6 {[%emt 0:03:19]} Bxc6 {[%emt 0:01:35]} 21. b4 {[%emt 0:04:04]} h5 {[%emt 0:14:25][%cal Oh5h4]} 22. Qe2 {[%emt 0:03:01]} Bb7 {[%emt 0:01:45]} 23. Rcd1 {[%emt 0:05:17]} h4 {[%emt 0:07:24]} 24. gxh4 {[%emt 0:01:53]} Qh7 {[%emt 0:02:00]} 25. h5 {[%emt 0:09:12]} Re5 {[%emt 0:03:38]} 26. h4 {[%emt 0:03:11]} (26. Rd8 $11 {keeps the balance.}) 26... Rxh5 $17 {[%emt 0:01:45]} 27. Rd8 $2 {[%emt 0:00:48]} (27. Nxe4 $17 {was forced.} Bxe4 28. Bxe4 Nxe4 29. Rxe4) 27... Rxh4 $19 {[%emt 0:01:49] aiming for ...Ng4.} 28. Nd5 {[%emt 0:00:29]} Nxd5 {[%emt 0:06:01]} (28... Rxd8 29. Nxf6+ gxf6 30. Rxd8 $17) 29. R1xd5 {[%emt 0:01:26]} Qg6 {[%emt 0:00:52]} 30. Rxc8 $2 {[%emt 0:01:49]} (30. Be5 Bxd5 31. Rxc8) 30... Bxc8 {[%emt 0:01:18]} (30... Bxd5 $2 31. Qxa6 Qd6 (31... Rg4 32. Rxf8+ Kxf8 33. Qc8+ Ke7 34. Qc7+ Ke8 35. Qc8+ Ke7 36. Qc7+ Ke8 37. Qc8+ Ke7 $11) 32. a4 $19) 31. Be5 {[%emt 0:00:44]} Rh5 {[%emt 0:09:32]} (31... Bxb4 $2 32. Rd8+ Kh7 33. Rxc8 $18) 32. Rd8 {[%emt 0:00:53][%cal Oe2c4]} Bh3 {[%emt 0:02:01][%csl Gh3][%cal Rg6g2]} 33. Bg3 {[%emt 0:01:02] and Qd1 should not be overlooked} Bxg2 {[%emt 0:00:30]} 34. Kxg2 {[%emt 0:00:08][%cal Oe2d1]} Qf5 $1 {[%emt 0:00:39] ( -> ...Qh3+)} 35. f4 {[%emt 0:00:17][%cal Oe2d1]} Rh6 {[%emt 0:01:30]} (35... exf3+ $142 36. Qxf3 Qh3+ 37. Kg1 Rg5 38. Rxf8+ Kxf8 39. Qa8+ Ke7 40. Qe4+ Qe6) 36. Qd1 $2 {[%emt 0:00:19]} (36. Kf2 {was worth a try.}) 36... Re6 $2 {[%emt 0:10:42]} (36... Qh3+ $19 37. Kf2 Qe6) 37. a3 $15 {[%emt 0:00:50]} Qf6 {[%emt 0:01:49]} 38. f5 {[%emt 0:00:57] White is now going downhill.} Rc6 $1 $19 {[%emt 0:01:12][%cal Of6g5]} (38... Qxf5 39. Rxf8+ Kxf8 40. Qd8+ Re8 41. Bd6+ (41. Qxb6 $2 Qf3+ 42. Kh2 Kg8 $19) 41... Kg8 42. Qxe8+ Kh7 43. Bf4 $11) 39. Bf4 {[%emt 0:00:45] [#]} g5 $1 {[%emt 0:03:44]} (39... Qxf5 40. Rxf8+ Kh7 41. Re8 $18) 40. fxg6 {[%emt 0:01:55] [#]} Qb2+ $1 {[%emt 0:01:25]} (40... Qxg6+ 41. Kf2 $17) 41. Rd2 {[%emt 0:09:14]} Rxg6+ {[%emt 0:00:23]} (41... Qxa3 $2 42. gxf7+ Kxf7 43. Rd7+ Be7 44. Qd5+ Re6 45. Bg5 (45. Qf5+ Ke8 $18) 45... Qb2+ 46. Kh3 Qh8+ 47. Kg4 $18) 42. Kh1 {[%emt 0:00:26]} Qxa3 {[%emt 0:07:38]} 43. Rh2 {[%emt 0:06:32]} Qd3 {[%emt 0:02:21]} ({Don't play} 43... Qxb4 44. Be5 Bh6 45. Qd8+ Qf8 46. Qd7 $19) 44. Qc1 {[%emt 0:02:00]} Qd7 {[%emt 0:02:09][%cal Od7g4]} (44... Bxb4 45. Be5 Kf8 46. Rh8+ Ke7 47. Qc7+ Qd7 48. Bf6+ Rxf6 49. Qe5+ Re6 50. Qg5+ Kd6 51. Rd8 $11) 45. b5 $2 {[%emt 0:04:25]} (45. Be5 f6 (45... Bxb4 46. Rh8#) 46. Qc4+ Kg7 (46... Qf7 $2 47. Rh8+ Kg7 48. Rh7+ Kxh7 49. Qxf7+ Bg7 50. Bf4 $18) 47. Qc7 Qxc7 48. Bxc7) 45... Qxb5 {[%emt 0:04:29]} 46. Qa1 {[%emt 0:01:43]} Bg7 {[%emt 0:00:36] Against Rh8+} 47. Qd1 {[%emt 0:00:22]} Qc4 {[%emt 0:05:35]} 48. Be5 {[%emt 0:02:58]} (48. Rg2 $142 Qe6 49. Kg1) 48... Qd3 {[%emt 0:03:15]} (48... Bxe5 49. Qd8+ Kg7 50. Qh8#) 49. Qc1 {[%emt 0:00:23]} Qd7 {[%emt 0:01:47] Prevents Qc8+} ({Worse is} 49... Bxe5 50. Qc8+) 50. Bxg7 {[%emt 0:01:08]} Qg4 {[%emt 0:01:53] ( -> ...Qf3+)} 51. Qc8+ {[%emt 0:01:43]} Qxc8 {[%emt 0:00:07][%cal Rc8c1]} 52. Rh8+ {[%emt 0:00:06]} Kxg7 {[%emt 0:00:06]} 53. Rxc8 {[%emt 0:00:06][%mdl 4096] Endgame KR-KR. Black is 3 pawns up.} b5 {[%emt 0:02:22]} 54. Rb8 {[%emt 0:05:08] Inhibits Rb6.} Kf6 {[%emt 0:01:12]} 55. Re8 {[%emt 0:00:34]} Kf5 {[%emt 0:00:14] ( -> ...Rb6)} 56. Re7 {[%emt 0:00:07]} Rb6 {[%emt 0:00:59] Black mates.} 57. Rxf7+ {[%emt 0:00:09]} Ke5 {[%emt 0:00:34]} 58. Kg2 {[%emt 0:00:15]} b4 {[%emt 0:00:28] Weighted Error Value: White=0.77/Black=0.29 (precise)   Loses game:     	White=1     	---        Missed win:     	---       	Black=1      Mistake:       	White=6     	Black=1      Inaccurate:     	White=3     	Black=1      OK:         	White=18    	Black=13     Best:        	White=2     	Black=5      Strong:       	---       	Black=4} 0-1

[Event "Fagernes Chess GM-Swiss 2025"]
[Site "Fagernes"]
[Date "2025.04.14"]
[Round "2.7"]
[White "Blomqvist, Erik"]
[Black "Melaa, Sondre"]
[Result "0-1"]
[Annotator "TA"]
[ECO "C78"]
[WhiteElo "2475"]
[BlackElo "2344"]
[PlyCount "84"]
[EventDate "2025.04.12"]
[EventCountry "NOR"]
[SourceTitle "playchess.com"]
[Source "ChessBase"]
[SourceQuality "1"]
[TimeControl "40/6000+30:2400+30"]

{[%evp 15,84,6,22,12,11,11,6,18,12,0,4,0,7,-6,0,-103,-102,-100,-100,-100,-101,-102,-101,-102,-113,-104,-106,-106,-95,-97,-89,-83,-85,-84,-80,-80,-86,-83,-83,-94,-87,-126,-119,-89,-64,-113,-48,-53,-46,-168,-14,-14,-14,-22,-15,-63,-13,-13,-13,-120,-102,-268,-266,-246,-254,-407,-397,-769,-762,-754,-743]} 1. e4 {[%emt 0:00:05]} e5 {[%emt 0:06:01]} 2. Nf3 {[%emt 0:00:08]} Nc6 {[%emt 0:00:16]} 3. Bb5 {[%emt 0:00:23]} a6 {[%emt 0:00:33]} 4. Ba4 {[%emt 0:00:06]} Nf6 {[%emt 0:00:07]} 5. d3 {[%emt 0:00:19]} b5 {[%emt 0:00:29]} 6. Bb3 {[%emt 0:00:08]} Bc5 {[%emt 0:00:06]} 7. O-O {[%emt 0:01:30]} d6 {[%emt 0:00:33]} 8. c3 {[%emt 0:00:20]} h6 {[%emt 0:01:35]} 9. Re1 {[%emt 0:00:32]} O-O {[%emt 0:01:51]} 10. Nbd2 {[%emt 0:00:33][%cal Bb1d2,Bd2f1,Bf1g3][%mdl 32]} Re8 {[%emt 0:02:06]} 11. Nf1 {[%emt 0:00:33] The position is equal.} Bb6 {[%emt 0:00:59]} 12. Ng3 {[%emt 0:06:47]} Be6 {[%emt 0:03:59]} 13. Bxe6 {[%emt 0:43:05]} Rxe6 {[%emt 0:00:11]} 14. Nh4 {[%emt 0:00:29]} d5 {[%emt 0:14:33]} 15. Qf3 {[%emt 0:00:56] [#]} (15. Nhf5 $11) 15... Nxe4 $1 $17 {[%emt 0:07:21][%mdl 512]} 16. dxe4 {[%emt 0:11:09]} Qxh4 {[%emt 0:00:19]} 17. exd5 {[%emt 0:22:23]} Rf6 {[%emt 0:00:25] Black is more active.} 18. Nf5 {[%emt 0:01:19] [#]} Qxf2+ {[%emt 0:01:32][%mdl 512]} 19. Qxf2 {[%emt 0:00:05]} Bxf2+ {[%emt 0:00:09]} 20. Kxf2 {[%emt 0:00:05][%cal Og2g4]} Rxf5+ {[%emt 0:00:10]} 21. Kg1 {[%emt 0:00:51]} Ne7 {[%emt 0:03:10]} 22. g4 {[%emt 0:02:24]} Rf6 {[%emt 0:02:53][%cal Oa8d8]} 23. Rxe5 {[%emt 0:02:14]} Ng6 {[%emt 0:00:12]} 24. Re4 {[%emt 0:04:16]} Rd6 $1 {[%emt 0:06:41]} 25. a4 {[%emt 0:01:55] And now axb5 would win.} Rad8 {[%emt 0:07:54]} 26. axb5 {[%emt 0:00:06]} axb5 {[%emt 0:00:05]} 27. Be3 {[%emt 0:07:03]} Rxd5 {[%emt 0:00:52]} 28. Ra7 {[%emt 0:00:22] [#]} Rd1+ $1 {[%emt 0:10:35]} 29. Kf2 {[%emt 0:00:15]} c6 {[%emt 0:04:00]} 30. Rc7 {[%emt 0:01:01]} (30. Rd4 $15 {was preferrable.}) 30... R1d6 {[%emt 0:01:53]} (30... Rb1 $17 31. Kg3 Rxb2) 31. Bd4 {[%emt 0:03:41]} Nf8 {[%emt 0:05:23] White must now prevent ...Ne6.} 32. Ree7 {[%emt 0:00:12]} (32. Bb6 $15) 32... R8d7 $2 {[%emt 0:05:06]} ({Black should try} 32... Ne6 $19 33. Rxf7 c5 (33... Nxc7 34. Rxg7+ Kf8 35. Rxc7 $11) 34. Rxg7+ Nxg7 35. Rxc5 Ne6 36. Rxb5 Nxd4 37. cxd4 Rxd4) 33. Rexd7 $11 {[%emt 0:00:16]} Nxd7 {[%emt 0:00:08][%mdl 4096] Endgame. KRB-KRN} 34. Rc8+ {[%emt 0:01:22]} Kh7 {[%emt 0:00:07]} 35. Rd8 {[%emt 0:00:16]} (35. h4 $11 {should be considered.}) 35... Kg6 {[%emt 0:03:00]} (35... Nc5 $15 36. Rxd6 Ne4+ 37. Kf3 Nxd6) 36. b4 {[%emt 0:00:40]} f6 {[%emt 0:02:13][%cal Od7c5]} 37. Kg3 {[%emt 0:00:34] [#]} (37. h4 $1 $11 {was the only way to keep the balance.}) 37... Nc5 $1 $17 {[%emt 0:01:29]} 38. Rc8 $2 {[%emt 0:00:10]} (38. Rxd6 $17 {was forced.} Ne4+ 39. Kf4 Nxd6 40. Bc5) 38... Ne6 $19 {[%emt 0:00:40]} 39. Bc5 {[%emt 0:00:46]} Rd3+ {[%emt 0:04:34]} 40. Kg2 $2 {[%emt 0:00:26]} (40. Kf2 Rxc3 41. Rxc6) 40... Rxc3 {[%emt 0:07:59]} (40... Kg5 41. Rxc6 Nf4+ 42. Kf2 Rxc3 (42... Kxg4 $2 43. Bd6 $19) 43. Rb6 $19) 41. Rxc6 $2 {[%emt 0:40:06]} (41. Bd6) 41... Nf4+ {[%emt 0:41:10]} 42. Kf2 {[%emt 0:00:00]} Nd3+ {[%emt 0:00:00] Weighted Error Value: White=0.46/Black=0.12 (very precise) .  Loses game:     	White=1     	---        Mistake:       	White=7     	Black=3      Inaccurate:     	White=1     	---        OK:         	White=7     	Black=15     Best:        	White=4     	Black=4      Strong:       	---       	Black=2      Brilliant:      	---       	Black=1} 0-1

[Event "Fagernes Chess GM-Swiss 2025"]
[Site "Fagernes"]
[Date "2025.04.14"]
[Round "2.8"]
[White "Johansson, Linus"]
[Black "Bazakutsa, Svyatoslav"]
[Result "1-0"]
[Annotator "RC"]
[ECO "E46"]
[WhiteElo "2392"]
[BlackElo "2474"]
[PlyCount "149"]
[EventDate "2025.04.12"]
[EventCountry "NOR"]
[SourceTitle "playchess.com"]
[Source "ChessBase"]
[SourceQuality "1"]
[TimeControl "40/6000+30:2400+30"]

1. d4 {[%emt 0:00:03]} Nf6 {[%emt 0:00:16]} 2. c4 {[%emt 0:00:03]} e6 {[%emt 0:00:08]} 3. Nc3 {[%emt 0:00:05]} Bb4 {[%emt 0:00:04]} 4. e3 {[%emt 0:00:05]} O-O {[%emt 0:00:07]} 5. Bd2 {[%emt 0:00:01]} b6 {[%emt 0:00:13]} 6. Be2 {[%emt 0:01:48]} Bb7 {[%emt 0:07:48]} 7. Bf3 {[%emt 0:00:07]} d5 {[%emt 0:07:49]} 8. cxd5 {[%emt 0:00:06]} exd5 {[%emt 0:04:12]} 9. Nge2 {[%emt 0:00:26]} Re8 {[%emt 0:13:29]} 10. O-O {[%emt 0:00:22]} Bd6 {[%emt 0:02:34]} 11. Qb3 {[%emt 0:08:05]} c6 {[%emt 0:03:24]} 12. Ng3 {[%emt 0:09:51]} Na6 {[%emt 0:14:17]} 13. Rfd1 {[%emt 0:10:38]} g6 {[%emt 0:06:06]} 14. Re1 {[%emt 0:02:47]} Nc7 {[%emt 0:01:10]} 15. e4 {[%emt 0:01:31]} Ne6 {[%emt 0:08:25]} 16. Be3 {[%emt 0:00:26]} Bxg3 {[%emt 0:11:35]} 17. exd5 {[%emt 0:09:14]} Bxh2+ {[%emt 0:02:52]} 18. Kxh2 {[%emt 0:00:02]} cxd5 {[%emt 0:00:39]} 19. Kg1 {[%emt 0:01:57]} h5 {[%emt 0:01:49]} 20. a4 {[%emt 0:02:26]} a6 {[%emt 0:02:52]} 21. Ne2 {[%emt 0:02:36]} Rc8 {[%emt 0:06:01]} 22. Nf4 {[%emt 0:01:00]} Ng7 {[%emt 0:06:16]} 23. a5 {[%emt 0:11:53]} b5 {[%emt 0:05:47]} 24. Nd3 {[%emt 0:00:34]} Ne4 {[%emt 0:02:32]} 25. Ne5 {[%emt 0:07:26]} Ne6 {[%emt 0:00:22]} 26. Qa3 {[%emt 0:10:10]} Nd6 {[%emt 0:00:38]} 27. b4 {[%emt 0:03:05]} Nf5 {[%emt 0:01:17]} 28. Qb2 {[%emt 0:00:49]} Qf6 {[%emt 0:00:41]} 29. Nd7 {[%emt 0:03:46]} Qg7 {[%emt 0:00:09]} 30. Ne5 {[%emt 0:05:42]} Rc7 {[%emt 0:00:13]} 31. Rac1 {[%emt 0:01:11]} Rec8 {[%emt 0:01:03]} 32. Rxc7 {[%emt 0:00:40]} Rxc7 {[%emt 0:00:05]} 33. Rd1 {[%emt 0:01:35]} Qf6 {[%emt 0:00:34]} 34. Rc1 {[%emt 0:03:55]} Qe7 {[%emt 0:01:19]} 35. Rxc7 {[%emt 0:01:37]} Qxc7 {[%emt 0:00:10]} 36. Nd3 {[%emt 0:02:04]} Qe7 {[%emt 0:00:31]} 37. Qc3 {[%emt 0:01:34]} Nh4 {[%emt 0:00:47]} 38. Bd1 {[%emt 0:01:52]} Nf5 {[%emt 0:00:24]} 39. Bf3 {[%emt 0:01:45]} Nh4 {[%emt 0:00:29]} 40. Bd1 {[%emt 0:00:08]} Kh7 {[%emt 0:00:29]} 41. Ne5 {[%emt 0:10:11]} Nf5 {[%emt 0:08:20]} 42. Bf3 {[%emt 0:00:16]} Kg7 {[%emt 0:00:42]} 43. Nd3 {[%emt 0:00:46]} Kg8 {[%emt 0:07:06]} 44. Nf4 {[%emt 0:06:53]} Nc7 {[%emt 0:22:21]} 45. Bd2 {[%emt 0:05:27]} Qd6 {[%emt 0:01:32]} 46. Be3 {[%emt 0:03:48]} Ne8 {[%emt 0:01:40]} 47. Nd3 {[%emt 0:01:02]} Nxe3 {[%emt 0:01:45]} 48. fxe3 {[%emt 0:00:05]} Qe7 {[%emt 0:00:29]} 49. Nc5 {[%emt 0:06:31]} Qc7 {[%emt 0:00:26]} 50. Qe1 {[%emt 0:00:59]} Ng7 {[%emt 0:00:53]} 51. Qh4 {[%emt 0:01:22]} Ba8 {[%emt 0:00:33]} 52. Qf6 {[%emt 0:03:24]} Qg3 {[%emt 0:00:12]} 53. Kf1 {[%emt 0:01:18]} Nf5 {[%emt 0:00:24]} 54. Ke2 {[%emt 0:00:44]} Qc7 {[%emt 0:00:34]} 55. Qe5 {[%emt 0:03:23]} Qxe5 {[%emt 0:00:51]} 56. dxe5 {[%emt 0:00:01]} Ng7 {[%emt 0:00:31]} 57. Nxa6 {[%emt 0:00:49]} Ne6 {[%emt 0:00:02]} 58. Kd2 {[%emt 0:04:21]} Kf8 {[%emt 0:00:39]} 59. Be2 {[%emt 0:00:23]} d4 {[%emt 0:00:43]} 60. g3 {[%emt 0:00:14]} Ke7 {[%emt 0:00:23]} 61. Bxb5 {[%emt 0:01:08]} g5 {[%emt 0:00:06]} 62. Bf1 {[%emt 0:00:19]} g4 {[%emt 0:00:54]} 63. Nc5 {[%emt 0:01:33]} h4 {[%emt 0:00:39]} 64. gxh4 {[%emt 0:00:07]} g3 {[%emt 0:00:33]} 65. Nxe6 {[%emt 0:00:22]} fxe6 {[%emt 0:00:25]} 66. exd4 {[%emt 0:00:19]} g2 {[%emt 0:00:11]} 67. Bxg2 {[%emt 0:00:02]} Bxg2 {[%emt 0:00:02]} 68. b5 {[%emt 0:00:35]} Bf1 {[%emt 0:01:05]} 69. b6 {[%emt 0:00:05]} Ba6 {[%emt 0:00:10]} 70. Kc3 {[%emt 0:00:06]} Kd7 {[%emt 0:00:53]} 71. h5 {[%emt 0:00:15]} Bb7 {[%emt 0:00:08]} 72. h6 {[%emt 0:01:56]} Be4 {[%emt 0:00:02]} 73. a6 {[%emt 0:00:14]} Kc6 {[%emt 0:00:04]} 74. a7 {[%emt 0:00:25]} Kb7 {[%emt 0:00:05]} 75. Kb4 {[%emt 0:00:05]} 1-0

[Event "Fagernes Chess GM-Swiss 2025"]
[Site "Fagernes"]
[Date "2025.04.14"]
[Round "2.9"]
[White "Grave, Jacob Templen"]
[Black "Willow, Jonah B"]
[Result "0-1"]
[Annotator "RC"]
[ECO "B22"]
[WhiteElo "2337"]
[BlackElo "2471"]
[PlyCount "120"]
[EventDate "2025.04.12"]
[EventCountry "NOR"]
[SourceTitle "playchess.com"]
[Source "ChessBase"]
[SourceQuality "1"]
[TimeControl "40/6000+30:2400+30"]

1. e4 {[%emt 0:01:11]} c5 {[%emt 0:03:56]} 2. Nf3 {[%emt 0:00:23]} g6 {[%emt 0:01:30]} 3. c3 {[%emt 0:03:45]} d5 {[%emt 0:00:23]} 4. exd5 {[%emt 0:11:40]} Qxd5 {[%emt 0:00:22]} 5. d4 {[%emt 0:00:50]} Bg7 {[%emt 0:00:04]} 6. Be3 {[%emt 0:18:26]} cxd4 {[%emt 0:05:56]} 7. cxd4 {[%emt 0:01:14]} Nf6 {[%emt 0:02:11]} 8. Nc3 {[%emt 0:00:08]} Qa5 {[%emt 0:06:26]} 9. Bc4 {[%emt 0:02:34]} O-O {[%emt 0:02:28]} 10. O-O {[%emt 0:01:04]} Bg4 {[%emt 0:11:16]} 11. h3 {[%emt 0:09:30]} Bxf3 {[%emt 0:02:00]} 12. Qxf3 {[%emt 0:00:07]} Nc6 {[%emt 0:01:35]} 13. Rad1 {[%emt 0:03:37]} Qb4 {[%emt 0:05:13]} 14. Bb3 {[%emt 0:11:00]} Na5 {[%emt 0:08:40]} 15. Nd5 {[%emt 0:02:20]} Nxd5 {[%emt 0:04:37]} 16. Bd2 {[%emt 0:03:20]} Qb6 {[%emt 0:07:08]} 17. Bxd5 {[%emt 0:09:28]} Rad8 {[%emt 0:09:06]} 18. Bxa5 {[%emt 0:15:40]} Qxa5 {[%emt 0:00:11]} 19. Bb3 {[%emt 0:00:28]} Qb4 {[%emt 0:05:28]} 20. d5 {[%emt 0:06:02]} Bxb2 {[%emt 0:01:10]} 21. Rfe1 {[%emt 0:01:03]} Bf6 {[%emt 0:03:29]} 22. Re4 {[%emt 0:01:01]} Qd6 {[%emt 0:00:42]} 23. Rc4 {[%emt 0:00:59]} Kg7 {[%emt 0:05:11]} 24. g3 {[%emt 0:01:06]} Qd7 {[%emt 0:04:17]} 25. Kg2 {[%emt 0:00:29]} b5 {[%emt 0:00:31]} 26. Rc6 {[%emt 0:01:32]} a5 {[%emt 0:00:41]} 27. a3 {[%emt 0:01:16]} Qb7 {[%emt 0:06:39]} 28. d6 {[%emt 0:02:25]} exd6 {[%emt 0:00:31]} 29. Rdxd6 {[%emt 0:00:59]} Rxd6 {[%emt 0:00:05]} 30. Rxd6 {[%emt 0:00:05]} Qxf3+ {[%emt 0:00:18]} 31. Kxf3 {[%emt 0:00:05]} Rc8 {[%emt 0:00:10]} 32. Ke2 {[%emt 0:01:05]} a4 {[%emt 0:03:09]} 33. Bd5 {[%emt 0:01:09]} Rc2+ {[%emt 0:03:37]} 34. Kd1 {[%emt 0:00:57]} Rxf2 {[%emt 0:00:36]} 35. Rb6 {[%emt 0:00:10]} Be7 {[%emt 0:01:43]} 36. Rxb5 {[%emt 0:00:46]} Bxa3 {[%emt 0:00:04]} 37. Ra5 {[%emt 0:00:25]} Rf5 {[%emt 0:03:34]} 38. g4 {[%emt 0:00:26]} Re5 {[%emt 0:00:04]} 39. Rb5 {[%emt 0:00:28]} Be7 {[%emt 0:01:05]} 40. Bc4 {[%emt 0:00:42]} Re4 {[%emt 0:00:42]} 41. Bd5 {[%emt 0:01:22]} Rd4+ {[%emt 0:01:10]} 42. Ke2 {[%emt 0:00:15]} a3 {[%emt 0:00:21]} 43. Bb3 {[%emt 0:00:42]} Re4+ {[%emt 0:03:23]} 44. Kf3 {[%emt 0:00:42]} Re1 {[%emt 0:00:10]} 45. Ra5 {[%emt 0:01:14]} Rf1+ {[%emt 0:04:18]} 46. Kg2 {[%emt 0:02:36]} Rb1 {[%emt 0:01:01]} 47. Bd5 {[%emt 0:02:20]} Rd1 {[%emt 0:00:22]} 48. Bc4 {[%emt 0:03:09]} Rd4 {[%emt 0:01:33]} 49. Bf1 {[%emt 0:04:50]} Rd2+ {[%emt 0:03:03]} 50. Kf3 {[%emt 0:00:24]} Bb4 {[%emt 0:00:56]} 51. Ra6 {[%emt 0:01:01]} Bc5 {[%emt 0:01:59]} 52. Bc4 {[%emt 0:01:23]} Rh2 {[%emt 0:05:27]} 53. Kg3 {[%emt 0:01:12]} Rc2 {[%emt 0:00:12]} 54. Bd5 {[%emt 0:00:45]} Rc3+ {[%emt 0:05:18]} 55. Kg2 {[%emt 0:00:54]} Rd3 {[%emt 0:00:04]} 56. Bc4 {[%emt 0:00:32]} Rd4 {[%emt 0:00:07]} 57. Bf1 {[%emt 0:05:22]} Rd2+ {[%emt 0:00:42]} 58. Kg3 {[%emt 0:00:08]} Rc2 {[%emt 0:05:07]} 59. Bg2 {[%emt 0:05:08]} Bf2+ {[%emt 0:01:25]} 60. Kh2 {[%emt 0:02:56]} a2 {[%emt 0:00:54]} 0-1